fUST/lending_fUST_20240611
["ID","MTS","AMOUNT","RATE_DAILY","PERIOD"]
[329094863,1718103042568,-500.0,0.00021917,2]
[329094866,1718103042579,-501.34817219,0.00021917,2]
[329094869,1718103042590,-500.0,0.00021917,2]
[329094872,1718103042601,-2215.26,0.00021917,2]
[329094875,1718103042612,-500.0,0.00021917,2]
[329094878,1718103042623,-1991.09,0.00021917,2]
[329094881,1718103042634,-500.0,0.00021917,2]
[329094900,1718103042735,-2918.17,0.00021917,2]
[329094903,1718103042747,-500.0,0.00021917,2]
[329094906,1718103042758,-500.0,0.00021917,2]
[329094909,1718103042769,-502.27060133,0.00021917,2]
[329094912,1718103042780,-500.0,0.00021917,2]
[329094915,1718103042790,-400.0,0.00021917,2]
[329094918,1718103042801,-503.52391237,0.00021917,2]
[329094921,1718103042812,-513.23153849,0.00021917,2]
[329094924,1718103042823,-500.0,0.00021917,2]
[329094927,1718103042834,-500.0,0.00021917,2]
[329094930,1718103042844,-500.0,0.00021917,2]
[329094933,1718103042855,-500.0,0.00021917,2]
[329094936,1718103042866,-500.0,0.00021917,2]
[329094939,1718103042877,-500.0,0.00021917,2]
[329094942,1718103042888,-500.0,0.00021917,2]
[329094945,1718103042899,-500.0,0.00021917,2]
[329094948,1718103042910,-315.54397708,0.00021917,2]
[329094951,1718103042921,-672.49,0.00021917,2]
[329094954,1718103042931,-500.0,0.00021917,2]
[329094957,1718103042942,-500.0,0.00021917,2]
[329094960,1718103042953,-501.15983677,0.00021917,2]
[329094963,1718103042966,-500.0,0.00021917,2]
[329094966,1718103042977,-1244.53,0.00021917,2]
[329094969,1718103042988,-500.0,0.00021917,2]
[329094972,1718103043000,-500.0,0.00021917,2]
[329094975,1718103043012,-500.0,0.00021917,2]
[329094978,1718103043023,-179.40204502,0.00021917,2]
[329094981,1718103043035,-502.42349639,0.00021917,2]
[329094984,1718103043047,-509.92997119,0.00021917,2]
[329094987,1718103043066,-500.0,0.00021917,2]
[329094989,1718103043076,-500.0,0.00021917,2]
[329094992,1718103043087,-500.0,0.00021917,2]
[329094995,1718103043097,-500.0,0.00021917,2]
[329094999,1718103043108,-500.0,0.00021917,2]
[329095001,1718103043119,-500.0,0.00021917,2]
[329095004,1718103043131,-500.0,0.00021917,2]
[329095006,1718103043145,-500.0,0.00021917,2]
[329095009,1718103043157,-500.0,0.00021917,2]
[329095012,1718103043168,-500.0,0.00021917,2]
[329095014,1718103043179,-500.0,0.00021917,2]
[329095017,1718103043190,-500.0,0.00021917,2]
[329095019,1718103043201,-500.0,0.00021917,2]
[329095022,1718103043212,-500.0,0.00021917,2]
[329095025,1718103043223,-372.08326973,0.00021917,2]
[329095026,1718103043234,-511.33260365,0.00021917,2]
[329095028,1718103043245,-500.0,0.00021917,2]
[329095029,1718103043256,-500.0,0.00021917,2]
[329095031,1718103043266,-500.0,0.00021917,2]
[329095034,1718103043277,-500.0,0.00021917,2]
[329095036,1718103043288,-500.0,0.00021917,2]
[329095039,1718103043299,-509.23181579,0.00021917,2]
[329095042,1718103043310,-531.52128321,0.00021917,2]
[329095044,1718103043321,-151.0,0.00021917,2]
[329095047,1718103043332,-500.0,0.00021917,2]
[329095050,1718103043343,-540.20277998,0.00021917,2]
[329095052,1718103043353,-500.0,0.00021917,2]
[329095054,1718103043364,-500.0,0.00021917,2]
[329095057,1718103043374,-500.0,0.00021917,2]
[329095059,1718103043385,-500.0,0.00021917,2]
[329095062,1718103043395,-500.0,0.00021917,2]
[329095064,1718103043406,-500.0,0.00021917,2]
[329095067,1718103043417,-500.0,0.00021917,2]
[329095070,1718103043427,-502.06130994,0.00021917,2]
[329095073,1718103043438,-634.06,0.00021917,2]
[329095076,1718103043449,-500.0,0.00021917,2]
[329095079,1718103043460,-500.0,0.00021917,2]
[329095082,1718103043471,-512.93374244,0.00021917,2]
[329095084,1718103043481,-500.0,0.00021917,2]
[329095087,1718103043493,-502.5596357,0.00021917,2]
[329095090,1718103043503,-500.0,0.00021917,2]
[329095092,1718103043513,-500.0,0.00021917,2]
[329095094,1718103043523,-500.0,0.00021917,2]
[329095096,1718103043535,-500.0,0.00021917,2]
[329095098,1718103043546,-603.44,0.00021917,2]
[329095100,1718103043557,-500.0,0.00021917,2]
[329095101,1718103043568,-500.0,0.00021917,2]
[329095103,1718103043578,-536.15286483,0.00021917,2]
[329095104,1718103043589,-500.0,0.00021917,2]
[329095106,1718103043599,-500.0,0.00021917,2]
[329095108,1718103043610,-500.0,0.00021917,2]
[329095110,1718103043621,-500.0,0.00021917,2]
[329095111,1718103043632,-500.0,0.00021917,2]
[329095113,1718103043642,-500.0,0.00021917,2]
[329095115,1718103043653,-166.666666,0.00021918,2]
[329095117,1718103043663,-4239.70515949,0.00021973,2]
[329095118,1718103043674,-587.98823578,0.00022,2]
[329095120,1718103043684,-151.03927021,0.00022018,4]
[329095122,1718103043695,-153.7364337,0.00022082,2]
[329095124,1718103043706,-477.9,0.00022123,3]
[329095125,1718103043716,-151.0,0.00022161,2]
[329095127,1718103043727,-151.0,0.00022161,2]
[329095129,1718103043737,-151.0,0.00022161,2]
[329095131,1718103043748,-239.375368,0.00022161,2]
[329095132,1718103043758,-239.375368,0.00022161,2]
[329095134,1718103043769,-151.0,0.00022161,2]
[329095136,1718103043779,-177.177774,0.00022161,2]
[329095138,1718103043789,-177.177774,0.00022161,2]
[329095139,1718103043800,-151.0,0.00022161,2]
[329095141,1718103043810,-151.0,0.00022167,2]
[329095143,1718103043820,-151.0,0.00022167,2]
[329095145,1718103043831,-240.79995,0.00022191,2]
[329095146,1718103043841,-13483.94434315,0.00022191,2]
[329095148,1718103043852,-500.0,0.00022191,2]
[329095150,1718103043862,-500.0,0.00022191,2]
[329095151,1718103043872,-500.0,0.00022191,2]
[329095153,1718103043883,-500.0,0.00022191,2]
[329095155,1718103043894,-500.0,0.00022191,2]
[329095157,1718103043904,-500.0,0.00022191,2]
[329095158,1718103043915,-500.0,0.00022191,2]
[329095160,1718103043926,-500.0,0.00022191,2]
[329095162,1718103043937,-500.0,0.00022191,2]
[329095163,1718103043947,-500.0,0.00022191,2]
[329095165,1718103043958,-328.36628643,0.00022191,2]
[329095167,1718103043972,-500.0,0.00022191,2]
[329095169,1718103043982,-500.0,0.00022191,2]
[329095170,1718103043994,-500.0,0.00022191,2]
[329095172,1718103044006,-500.0,0.00022191,2]
[329095174,1718103044017,-500.0,0.00022191,2]
[329095176,1718103044028,-500.0,0.00022191,2]
[329095177,1718103044038,-500.0,0.00022191,2]
[329095179,1718103044050,-500.0,0.00022191,2]
[329095181,1718103044061,-500.0,0.00022191,2]
[329095183,1718103044072,-500.0,0.00022191,2]
[329095184,1718103044083,-500.0,0.00022191,2]
[329095186,1718103044093,-500.0,0.00022191,2]
[329095188,1718103044102,-505.06638756,0.00022191,2]
[329095190,1718103044112,-151.0,0.00022191,2]
[329095191,1718103044122,-500.0,0.00022191,2]
[329095193,1718103044131,-151.0,0.00022191,2]
[329095195,1718103044141,-151.0,0.00022191,2]
[329095196,1718103044152,-151.0,0.00022191,2]
[329095198,1718103044162,-500.0,0.00022191,2]
[329095200,1718103044172,-379.65683132,0.00022191,2]
[329095202,1718103044188,-500.0,0.00022191,2]
[329095203,1718103044199,-500.0,0.00022191,2]
[329095205,1718103044209,-209.30122372,0.00022191,2]
[329095207,1718103044219,-500.0,0.00022191,2]
[329095209,1718103044230,-506.04564106,0.00022191,2]
[329095210,1718103044240,-159.086653,0.00022191,2]
[329095212,1718103044251,-159.086653,0.00022191,2]
[329095214,1718103044261,-500.0,0.00022191,2]
[329095215,1718103044271,-159.086653,0.00022191,2]
[329095217,1718103044281,-159.086653,0.00022191,2]
[329095219,1718103044292,-500.0,0.00022191,2]
[329095221,1718103044303,-500.0,0.00022191,2]
[329095222,1718103044313,-500.0,0.00022191,2]
[329095224,1718103044323,-505.29367401,0.00022191,2]
[329095226,1718103044334,-500.0,0.00022191,2]
[329095228,1718103044344,-500.0,0.00022191,2]
[329095229,1718103044355,-500.0,0.00022191,2]
[329095231,1718103044365,-500.0,0.00022191,2]
[329095233,1718103044375,-500.0,0.00022191,2]
[329095235,1718103044385,-620.81,0.00022191,2]
[329095236,1718103044395,-500.0,0.00022191,2]
[329095238,1718103044406,-289.68521563,0.00022191,2]
[329095240,1718103044416,-500.0,0.00022191,2]
[329095241,1718103044426,-151.0,0.00022191,2]
[329095243,1718103044437,-151.0,0.00022191,2]
[329095245,1718103044447,-500.0,0.00022191,2]
[329095247,1718103044458,-500.0,0.00022191,2]
[329095248,1718103044469,-500.0,0.00022191,2]
[329095250,1718103044479,-502.41508248,0.00022191,2]
[329095252,1718103044490,-500.0,0.00022191,2]
[329095254,1718103044503,-151.988398,0.00022191,2]
[329095256,1718103044514,-500.0,0.00022191,2]
[329095257,1718103044525,-151.0,0.00022191,2]
[329095259,1718103044535,-151.0,0.00022191,2]
[329095261,1718103044546,-500.0,0.00022191,2]
[329095263,1718103044556,-500.0,0.00022191,2]
[329095264,1718103044567,-500.0,0.00022191,2]
[329095266,1718103044577,-500.0,0.00022191,2]
[329095268,1718103044587,-500.0,0.00022191,2]
[329095269,1718103044597,-500.0,0.00022191,2]
[329095271,1718103044608,-500.0,0.00022191,2]
[329095273,1718103044619,-500.0,0.00022191,2]
[329095275,1718103044629,-500.0,0.00022191,2]
[329095276,1718103044639,-500.0,0.00022191,2]
[329095278,1718103044650,-500.0,0.00022191,2]
[329095280,1718103044660,-500.0,0.00022191,2]
[329095281,1718103044670,-500.0,0.00022191,2]
[329095283,1718103044680,-500.0,0.00022191,2]
[329095285,1718103044690,-549.97960982,0.00022191,2]
[329095287,1718103044700,-613.15770546,0.00022191,2]
[329095288,1718103044710,-151.0,0.00022191,2]
[329095290,1718103044721,-151.0,0.00022191,2]
[329095292,1718103044732,-500.0,0.00022191,2]
[329095293,1718103044744,-500.0,0.00022191,4]
[329095295,1718103044755,-1022.78,0.00022191,2]
[329095297,1718103044765,-151.0,0.00022191,2]
[329095299,1718103044775,-151.0,0.00022191,2]
[329095300,1718103044786,-2319.83,0.00022191,2]
[329095302,1718103044797,-1000.0,0.00022191,2]
[329095304,1718103044807,-245.176606,0.00022191,2]
[329095306,1718103044817,-268.64426873,0.00022191,2]
[329095307,1718103044828,-1102.3,0.00022191,2]
[329095309,1718103044837,-500.0,0.00022191,2]
[329095311,1718103044849,-500.0,0.00022191,2]
[329095312,1718103044859,-151.0,0.00022191,2]
[329095314,1718103044870,-342.9012283,0.00022191,2]
[329095316,1718103044880,-461.72671775,0.00022191,2]
[329095318,1718103044890,-505.98515896,0.00022191,2]
[329095319,1718103044900,-151.0,0.00022191,2]
[329095321,1718103044911,-151.0,0.00022191,2]
[329095323,1718103044922,-151.0,0.00022191,2]
[329095324,1718103044932,-151.0,0.00022191,2]
[329095326,1718103044942,-617.65035699,0.00022191,2]
[329095328,1718103044953,-500.0,0.00022191,2]
[329095330,1718103044965,-500.0,0.00022191,2]
[329095331,1718103044977,-501.73447581,0.00022191,2]
[329095333,1718103044987,-500.0,0.00022191,2]
[329095335,1718103044998,-977.75,0.00022191,2]
[329095337,1718103045010,-478.98554951,0.00022191,2]
[329095338,1718103045020,-500.0,0.00022191,2]
[329095340,1718103045030,-500.0,0.00022191,2]
[329095342,1718103045042,-500.0,0.00022191,2]
[329095350,1718103045143,-857.3,0.00022191,2]
[329095351,1718103045157,-500.0,0.00022191,2]
[329095353,1718103045168,-3257.72,0.00022191,2]
[329095355,1718103045179,-500.0,0.00022191,2]
[329095357,1718103045190,-500.0,0.00022191,2]
[329095358,1718103045202,-500.0,0.00022191,2]
[329095360,1718103045213,-500.0,0.00022191,2]
[329095362,1718103045224,-500.0,0.00022191,2]
[329095364,1718103045235,-500.0,0.00022191,2]
[329095366,1718103045247,-500.0,0.00022191,2]
[329095367,1718103045257,-500.0,0.00022191,2]
[329095369,1718103045267,-500.0,0.00022191,2]
[329095371,1718103045277,-500.0,0.00022191,2]
[329095373,1718103045289,-2824.6,0.00022191,2]
[329095374,1718103045298,-500.0,0.00022191,2]
[329095376,1718103045308,-500.0,0.00022191,2]
[329095378,1718103045318,-500.0,0.00022191,2]
[329095380,1718103045330,-500.0,0.00022191,2]
[329095382,1718103045340,-500.0,0.00022191,2]
[329095384,1718103045350,-503.48939188,0.00022191,2]
[329095386,1718103045360,-151.0,0.00022191,2]
[329095388,1718103045370,-505.74421584,0.00022191,2]
[329095390,1718103045380,-2271.31,0.00022191,2]
[329095392,1718103045391,-151.0,0.00022191,2]
[329095394,1718103045401,-151.0,0.00022191,2]
[329095396,1718103045411,-151.0,0.00022191,2]
[329095398,1718103045421,-500.0,0.00022191,2]
[329095400,1718103045432,-500.0,0.00022191,2]
[329095402,1718103045442,-500.0,0.00022191,2]
[329095404,1718103045452,-500.0,0.00022191,2]
[329095406,1718103045464,-500.0,0.00022191,2]
[329095408,1718103045475,-500.0,0.00022191,2]
[329095409,1718103045485,-500.0,0.00022191,2]
[329095410,1718103045497,-14941.47,0.00022191,2]
[329095411,1718103045508,-365.153501,0.00022191,2]
[329095412,1718103045519,-365.153501,0.00022191,2]
[329095413,1718103045529,-500.0,0.00022191,2]
[329095414,1718103045540,-234.624732,0.00022191,2]
[329095415,1718103045551,-365.153501,0.00022191,2]
[329095416,1718103045561,-365.153501,0.00022191,2]
[329095417,1718103045572,-506.08784265,0.00022191,2]
[329095418,1718103045583,-500.0,0.00022191,2]
[329095419,1718103045593,-500.0,0.00022191,2]
[329095420,1718103045604,-151.0,0.00022191,2]
[329095421,1718103045615,-151.0,0.00022191,2]
[329095422,1718103045626,-500.0,0.00022191,2]
[329095423,1718103045636,-1601.52,0.00022191,2]
[329095424,1718103045647,-505.5921389,0.00022191,2]
[329095425,1718103045658,-500.0,0.00022191,2]
[329095426,1718103045668,-586.34,0.00022191,2]
[329095427,1718103045679,-292.46784989,0.00022191,2]
[329095428,1718103045690,-500.0,0.00022191,2]
[329095429,1718103045700,-500.0,0.00022191,2]
[329095430,1718103045711,-500.0,0.00022191,2]
[329095431,1718103045722,-500.0,0.00022191,2]
[329095432,1718103045732,-500.0,0.00022191,2]
[329095433,1718103045744,-500.0,0.00022191,2]
[329095434,1718103045755,-180.7908262,0.00022191,2]
[329095435,1718103045765,-500.0,0.00022191,2]
[329095436,1718103045776,-229.757248,0.00022191,2]
[329095437,1718103045786,-229.757248,0.00022191,2]
[329095438,1718103045797,-2015.64311913,0.00022191,2]
[329095513,1718103046691,-199.61688087,0.00022191,2]
[329095515,1718103046702,-1991.09,0.00022191,2]
[329095517,1718103046713,-364.69045059,0.00022191,2]
[329095519,1718103046725,-500.0,0.00022191,2]
[329095521,1718103046735,-2918.17,0.00022191,2]
[329095523,1718103046746,-229.757248,0.00022191,2]
[329095525,1718103046757,-229.757248,0.00022191,2]
[329095527,1718103046767,-500.0,0.00022191,2]
[329095529,1718103046778,-500.0,0.00022191,2]
[329095531,1718103046788,-151.0,0.00022191,2]
[329095533,1718103046801,-500.0,0.00022191,2]
[329095535,1718103046812,-151.0,0.00022191,2]
[329095537,1718103046822,-500.0,0.00022191,2]
[329095539,1718103046833,-500.0,0.00022191,2]
[329095541,1718103046843,-239.375368,0.00022191,2]
[329095543,1718103046854,-500.0,0.00022191,2]
[329095545,1718103046865,-239.375368,0.00022191,2]
[329095547,1718103046875,-151.0,0.00022191,2]
[329095549,1718103046885,-500.0,0.00022191,2]
[329095551,1718103046895,-500.0,0.00022191,2]
[329095553,1718103046906,-500.0,0.00022191,2]
[329095555,1718103046916,-509.00200849,0.00022191,2]
[329095557,1718103046927,-672.49,0.00022191,2]
[329095559,1718103046938,-500.0,0.00022191,2]
[329095561,1718103046949,-505.48884414,0.00022191,2]
[329095563,1718103046959,-500.0,0.00022191,2]
[329095565,1718103046976,-1244.53,0.00022191,2]
[329095567,1718103046986,-500.0,0.00022191,2]
[329095569,1718103046997,-504.32441285,0.00022191,2]
[329095571,1718103047009,-500.0,0.00022191,2]
[329095573,1718103047020,-500.0,0.00022191,2]
[329095575,1718103047031,-500.0,0.00022191,2]
[329095577,1718103047042,-500.0,0.00022191,2]
[329095579,1718103047053,-500.0,0.00022191,2]
[329095581,1718103047064,-531.35162347,0.00022191,2]
[329095583,1718103047075,-552.32294094,0.00022191,2]
[329095585,1718103047085,-500.0,0.00022191,2]
[329095587,1718103047096,-500.0,0.00022191,2]
[329095589,1718103047107,-500.0,0.00022191,2]
[329095591,1718103047117,-511.15885728,0.00022191,2]
[329095593,1718103047128,-500.0,0.00022191,2]
[329095595,1718103047139,-500.0,0.00022191,2]
[329095597,1718103047156,-177.177774,0.00022191,2]
[329095599,1718103047167,-500.0,0.00022191,2]
[329095601,1718103047178,-500.0,0.00022191,2]
[329095603,1718103047189,-177.177774,0.00022191,2]
[329095605,1718103047199,-156.818835,0.00022191,2]
[329095607,1718103047211,-571.38758933,0.00022191,2]
[329095609,1718103047222,-503.40066937,0.00022191,2]
[329095620,1718103047320,-506.83143554,0.00022191,2]
[329095622,1718103047332,-500.0,0.00022191,2]
[329095624,1718103047344,-500.0,0.00022191,2]
[329095626,1718103047355,-500.0,0.00022191,2]
[329095628,1718103047366,-500.0,0.00022191,2]
[329095630,1718103047377,-634.06,0.00022191,2]
[329095632,1718103047387,-500.0,0.00022191,2]
[329095634,1718103047398,-500.0,0.00022191,2]
[329095636,1718103047409,-165.741074,0.00022191,2]
[329095638,1718103047420,-500.0,0.00022191,2]
[329095640,1718103047430,-500.0,0.00022191,2]
[329095642,1718103047441,-500.0,0.00022191,2]
[329095644,1718103047452,-500.0,0.00022191,2]
[329095646,1718103047462,-500.0,0.00022191,2]
[329095648,1718103047472,-603.44,0.00022191,2]
[329095650,1718103047483,-213.46359813,0.00022191,2]
[329095654,1718103047512,-8.45195069,0.00022191,2]
[329095656,1718103047525,-278.08445118,0.00022191,2]
[329095658,1718103047535,-506.32759368,0.00022191,2]
[329095660,1718103047545,-500.0,0.00022191,2]
[329095662,1718103047556,-463.0,0.00022191,2]
[329095664,1718103047567,-1000.0,0.00022213,2]
[329095666,1718103047577,-915.16201771,0.0002222,2]
[329095688,1718103047808,-160.0,0.00028896,30]
[329095692,1718103047835,-100000.0,0.00028896,30]
[329095696,1718103047867,-337579.31784349,0.00028896,60]
[329095699,1718103047897,-549560.75145531,0.00028896,120]
[329095703,1718103047925,-3368.91428953,0.00028896,120]
[329095707,1718103047953,-351062.63197489,0.00028896,30]
[329095710,1718103047987,-5000.0,0.00028896,120]
[329095714,1718103048016,-1945.61411352,0.00028896,120]
[329095718,1718103048044,-508.84963118,0.00028896,30]
[329095721,1718103048072,-1327.07988155,0.00028896,30]
[329095725,1718103048099,-4832.34739562,0.00028896,30]
[329095728,1718103048127,-3889.04674535,0.00028896,30]
[329095732,1718103048165,-653.0,0.00028896,120]
[329095736,1718103048205,-848.17644105,0.00028896,120]
[329095739,1718103048231,-679.10332943,0.00028896,120]
[329095743,1718103048258,-887.59874025,0.00028896,120]
[329095746,1718103048284,-1168.06921801,0.00028896,30]
[329095750,1718103048310,-39768.49364556,0.00028896,30]
[329095753,1718103048337,-33089.19202759,0.00028896,60]
[329095757,1718103048363,-859.58684027,0.00028896,120]
[329095760,1718103048390,-10288.63182222,0.00028896,30]
[329095764,1718103048417,-416.44900444,0.00028896,30]
[329095767,1718103048444,-229.13521145,0.00028896,30]
[329095771,1718103048473,-221.11940857,0.00028896,120]
[329095774,1718103048501,-1017.13334177,0.00028896,120]
[329095778,1718103048528,-23549.83129717,0.00028896,30]
[329095781,1718103048555,-1699.36027609,0.00028896,30]
[329095785,1718103048583,-3446.4857282,0.00028896,30]
[329095788,1718103048610,-2699.26169116,0.00028896,90]
[329095792,1718103048637,-11053.44809162,0.00028896,120]
[329095795,1718103048664,-998.68193409,0.00028896,120]
[329095799,1718103048691,-1000.0,0.00028896,120]
[329095803,1718103048718,-1000.0,0.00028896,120]
[329095806,1718103048746,-529.199999,0.00028896,120]
[329095810,1718103048773,-2761.84468411,0.00028896,120]
[329095813,1718103048799,-21978.0,0.00028896,31]
[329095817,1718103048827,-10000.0,0.00028896,30]
[329095820,1718103048855,-10000.0,0.00028896,45]
[329095824,1718103048882,-12091.0,0.00028896,60]
[329095827,1718103048910,-1236.52,0.00028896,37]
[329095831,1718103048939,-1545.65,0.00028896,47]
[329095835,1718103048969,-1854.78,0.00028896,57]
[329095838,1718103048996,-2163.91,0.00028896,67]
[329095842,1718103049024,-2473.04,0.00028896,77]
[329095845,1718103049053,-2782.17,0.00028896,87]
[329095849,1718103049080,-3091.3,0.00028896,120]
[329095860,1718103049195,-3400.43,0.00028896,120]
[329095863,1718103049221,-3709.56,0.00028896,120]
[329095867,1718103049252,-4018.69,0.00028896,120]
[329095871,1718103049280,-1545.8825,0.00028896,120]
[329095881,1718103049374,-203.4767354,0.00021915,2]
[329095883,1718103049386,-157.66978397,0.00021916,2]
[329095884,1718103049397,-223.37800328,0.00021916,2]
[329095886,1718103049408,-1910.51087096,0.00021916,2]
[329095887,1718103049419,-1877.1524641,0.00021916,2]
[329095888,1718103049429,-500.0,0.00021917,2]
[329095889,1718103049440,-84.83798229,0.0002222,2]
[329095890,1718103049451,-1000.0,0.00022232,2]
[329095891,1718103049461,-156.43397824,0.0002224,3]
[329095892,1718103049471,-1000.0,0.00022257,2]
[329095893,1718103049482,-1000.0,0.00022261,2]
[329095894,1718103049493,-302.0516616,0.00022266,2]
[329095895,1718103049504,-296.0,0.0002228,4]
[329095896,1718103049515,-1000.0,0.00022281,2]
[329095897,1718103049525,-1000.0,0.00022286,2]
[329095898,1718103049536,-500.0,0.00022287,7]
[329095899,1718103049546,-500.0,0.00022287,7]
[329095900,1718103049557,-500.0,0.00022287,7]
[329095901,1718103049568,-500.0,0.00022287,7]
[329095903,1718103049578,-500.0,0.00022287,7]
[329095904,1718103049589,-343.72,0.00022287,7]
[329095906,1718103049599,-500.0,0.00022287,7]
[329095908,1718103049610,-778.46057258,0.00022295,2]
[329095910,1718103049621,-300.0,0.0002231,2]
[329095912,1718103049632,-1000.0,0.00022354,2]
[329095914,1718103049642,-1000.0,0.00022376,2]
[329095915,1718103049653,-208.20259494,0.00022398,2]
[329095918,1718103049664,-254.0,0.000224,2]
[329095920,1718103049674,-151.0,0.000224,2]
[329095921,1718103049685,-160.0,0.000224,2]
[329095924,1718103049696,-300.908301,0.000224,10]
[329095925,1718103049707,-1008.927157,0.000224,2]
[329095927,1718103049718,-1000.0,0.00022418,2]
[329095929,1718103049729,-151.05239553,0.00022428,2]
[329095931,1718103049739,-166.666666,0.00022431,2]
[329095933,1718103049753,-1000.0,0.00022434,2]
[329095935,1718103049763,-4181.77364125,0.00022463,2]
[329095938,1718103049782,-513.97518462,0.00021917,2]
[329095940,1718103049793,-5403.92380869,0.00022463,2]
[329095943,1718103049806,-738.69537061,0.00022465,2]
[329095944,1718103049817,-500.0,0.00022465,2]
[329095946,1718103049827,-500.0,0.00022465,2]
[329095948,1718103049838,-500.0,0.00022465,2]
[329095950,1718103049850,-500.0,0.00022465,2]
[329095952,1718103049861,-500.0,0.00022465,2]
[329095955,1718103049874,-500.0,0.00022465,2]
[329095957,1718103049900,-500.0,0.00022465,2]
[329095959,1718103049912,-620.9988574,0.00022465,2]
[329095961,1718103049925,-500.0,0.00022465,2]
[329095963,1718103049936,-500.0,0.00022465,2]
[329095965,1718103049949,-500.0,0.00022465,2]
[329095967,1718103049960,-500.0,0.00022465,2]
[329095969,1718103049975,-500.0,0.00022465,2]
[329095971,1718103049987,-500.0,0.00022465,2]
[329095973,1718103049998,-500.0,0.00022465,2]
[329095975,1718103050015,-500.0,0.00022465,2]
[329095977,1718103050026,-510.38186321,0.00022465,2]
[329095979,1718103050037,-500.0,0.00022465,2]
[329095981,1718103050050,-500.0,0.00022465,2]
[329095983,1718103050061,-500.0,0.00022465,2]
[329095985,1718103050072,-151.0,0.00022465,2]
[329095987,1718103050082,-221.185528,0.00022465,2]
[329095989,1718103050094,-500.0,0.00022465,2]
[329095991,1718103050106,-500.0,0.00022465,2]
[329095993,1718103050117,-500.0,0.00022465,2]
[329095994,1718103050127,-518.12117476,0.00022465,2]
[329095996,1718103050138,-159.086653,0.00022465,2]
[329095998,1718103050155,-159.086653,0.00022465,2]
[329096000,1718103050167,-500.0,0.00022465,2]
[329096002,1718103050178,-500.0,0.00022465,2]
[329096004,1718103050189,-503.67087897,0.00022465,2]
[329096006,1718103050200,-165.22203798,0.00022465,2]
[329096008,1718103050213,-500.0,0.00022465,2]
[329096010,1718103050225,-500.0,0.00022465,2]
[329096012,1718103050236,-500.0,0.00022465,2]
[329096014,1718103050247,-620.81,0.00022465,2]
[329096016,1718103050262,-500.0,0.00022465,2]
[329096019,1718103050273,-151.0,0.00022465,2]
[329096021,1718103050284,-500.0,0.00022465,2]
[329096022,1718103050295,-500.0,0.00022465,2]
[329096025,1718103050306,-500.0,0.00022465,2]
[329096026,1718103050316,-504.74386643,0.00022465,2]
[329096029,1718103050328,-500.0,0.00022465,2]
[329096030,1718103050339,-151.0,0.00022465,2]
[329096032,1718103050349,-387.15415453,0.00022465,2]
[329096034,1718103050360,-500.0,0.00022465,2]
[329096036,1718103050370,-500.0,0.00022465,2]
[329096038,1718103050380,-312.69598048,0.00022465,2]
[329096040,1718103050391,-505.55114002,0.00022465,2]
[329096042,1718103050401,-500.0,0.00022465,2]
[329096044,1718103050413,-635.84036901,0.00022465,2]
[329096046,1718103050423,-500.0,0.00022465,2]
[329096048,1718103050434,-500.0,0.00022465,2]
[329096050,1718103050446,-500.0,0.00022465,2]